{"text_format":"3","workbook":"xlsx","n_sheets":3,"sheets":["Matkaloki","Lokitiedot","laskelmat"],"not_rendered":{"charts":1,"defined_names":17},"read":"whole","date_system":"1900"}

{"sheet":"Matkaloki","index":0,"n_rows":29,"n_cols":5,"rows_kept":29,"merged":[[0,1,1,4]]}
[null,"MATKALOKI"]
{"$rows_empty":9}
[null,null,"KORVATTAVAT",null,"KORVAUS"]
[null,null,"KILOMETRIT",null,"YHTEENSÄ"]
[]
[]
[]
[]
[null,null,"2012-05-01",null,"2012-05-10"]
[]
[null,null,"JAKSO",null,"JAKSO"]
[null,null,"ALOITUS",null,"LOPETUS"]
[]
[]
[]
[]
[]
[null,null,54,null,{"v":9800,"d":"9,800"}]
[]
[null,null,"KORVAUS",null,"EDELLINEN POLTTOAINE-"]
[null,null,"SENTTIÄ/KM",null,"LUKEMA"]

{"sheet":"Lokitiedot","index":1,"n_rows":19,"n_cols":15,"rows_kept":19,"merged":[[0,1,1,4]]}
[null,"MATKALOKI"]
[{"$nulls":14}," "]
[]
[]
[null,"PÄIVÄMÄÄRÄ","TOIMINTA","MATKAM. 1","SIJAINTI","MATKAM. 2","KOHDE","KORVAUS","LITRAA","KULUT","KILOMETRIT","MPG","SENTTIÄ/KM","HUOMAUTUKSIA"]
[null,"2012-05-01","Matka",{"v":10123,"d":"10,123"},"Chevron - Main St",{"v":10130,"d":"10,130"},null,null,15.56,{"v":64.11,"d":"64.11 €"},{"$f":"miles","v":7},{"$f":"IF(OR(LEN(data[[#This Row],[MATKAM. 2]]),data[[#This Row],[MATKAM. 1]]=\"\"),\"\",IFERROR(data[[#This Row],[KILOMETRIT]]/data[[#This Row],[LITRAA]],\"\"))","v":""},{"$f":"IF(data[[#This Row],[MPG]]=\"\",\"\",100*data[[#This Row],[KULUT]]/data[[#This Row],[KILOMETRIT]])","v":""}]
[null,"2012-05-01","Matka",{"v":10130,"d":"10,130"},"Toimisto",{"v":10200,"d":"10,200"},"Cherry Street","Kyllä",null,"",{"$f":"miles","v":70},{"$f":"IF(OR(LEN(data[[#This Row],[MATKAM. 2]]),data[[#This Row],[MATKAM. 1]]=\"\"),\"\",IFERROR(data[[#This Row],[KILOMETRIT]]/data[[#This Row],[LITRAA]],\"\"))","v":""},{"$f":"IF(data[[#This Row],[MPG]]=\"\",\"\",100*data[[#This Row],[KULUT]]/data[[#This Row],[KILOMETRIT]])","v":""}]
[null,"2012-05-01","Matka",{"v":10200,"d":"10,200"},"Smithfields",{"v":10285,"d":"10,285"},"Toimisto","Kyllä",null,"",{"$f":"miles","v":85},{"$f":"IF(OR(LEN(data[[#This Row],[MATKAM. 2]]),data[[#This Row],[MATKAM. 1]]=\"\"),\"\",IFERROR(data[[#This Row],[KILOMETRIT]]/data[[#This Row],[LITRAA]],\"\"))","v":""},{"$f":"IF(data[[#This Row],[MPG]]=\"\",\"\",100*data[[#This Row],[KULUT]]/data[[#This Row],[KILOMETRIT]])","v":""}]
[null,"2012-05-02","Matka",{"v":10285,"d":"10,285"},"Toimisto",{"v":10450,"d":"10,450"},"Colo Vineyard","Kyllä",null,"",{"$f":"miles","v":165},{"$f":"IF(OR(LEN(data[[#This Row],[MATKAM. 2]]),data[[#This Row],[MATKAM. 1]]=\"\"),\"\",IFERROR(data[[#This Row],[KILOMETRIT]]/data[[#This Row],[LITRAA]],\"\"))","v":""},{"$f":"IF(data[[#This Row],[MPG]]=\"\",\"\",100*data[[#This Row],[KULUT]]/data[[#This Row],[KILOMETRIT]])","v":""}]
[null,"2012-05-02","Polttoaine",{"v":10450,"d":"10,450"},"Shell",{"$nulls":3},{"v":11.2,"d":"11.20"},{"v":55.42,"d":"55.42 €"},{"$f":"miles","v":650},{"$f":"IF(OR(LEN(data[[#This Row],[MATKAM. 2]]),data[[#This Row],[MATKAM. 1]]=\"\"),\"\",IFERROR(data[[#This Row],[KILOMETRIT]]/data[[#This Row],[LITRAA]],\"\"))","v":{"v":58.03571428571429,"d":"58.0"}},{"$f":"IF(data[[#This Row],[MPG]]=\"\",\"\",100*data[[#This Row],[KULUT]]/data[[#This Row],[KILOMETRIT]])","v":{"v":8.526153846153846,"d":"8.5"}}]
[null,"2012-05-02","Matka",{"v":10500,"d":"10,500"},"Colo Vineyard",{"v":10518,"d":"10,518"},"Toimisto","Kyllä",null,"",{"$f":"miles","v":18},{"$f":"IF(OR(LEN(data[[#This Row],[MATKAM. 2]]),data[[#This Row],[MATKAM. 1]]=\"\"),\"\",IFERROR(data[[#This Row],[KILOMETRIT]]/data[[#This Row],[LITRAA]],\"\"))","v":""},{"$f":"IF(data[[#This Row],[MPG]]=\"\",\"\",100*data[[#This Row],[KULUT]]/data[[#This Row],[KILOMETRIT]])","v":""}]
[null,"2012-05-03","Matka",{"v":10518,"d":"10,518"},"Toimisto",{"v":10745,"d":"10,745"},"Toimisto","Kyllä",null,"",{"$f":"miles","v":227},{"$f":"IF(OR(LEN(data[[#This Row],[MATKAM. 2]]),data[[#This Row],[MATKAM. 1]]=\"\"),\"\",IFERROR(data[[#This Row],[KILOMETRIT]]/data[[#This Row],[LITRAA]],\"\"))","v":""},{"$f":"IF(data[[#This Row],[MPG]]=\"\",\"\",100*data[[#This Row],[KULUT]]/data[[#This Row],[KILOMETRIT]])","v":""}]
[null,"2012-05-04","Polttoaine",{"v":10745,"d":"10,745"},"Chevron - Main St",{"$nulls":3},{"v":16.6,"d":"16.60"},{"v":69.24,"d":"69.24 €"},{"$f":"miles","v":295},{"$f":"IF(OR(LEN(data[[#This Row],[MATKAM. 2]]),data[[#This Row],[MATKAM. 1]]=\"\"),\"\",IFERROR(data[[#This Row],[KILOMETRIT]]/data[[#This Row],[LITRAA]],\"\"))","v":{"v":17.771084337349397,"d":"17.8"}},{"$f":"IF(data[[#This Row],[MPG]]=\"\",\"\",100*data[[#This Row],[KULUT]]/data[[#This Row],[KILOMETRIT]])","v":{"v":23.471186440677965,"d":"23.5"}}]
[null,"2012-05-04","Matka",{"v":10745,"d":"10,745"},"Toimisto",{"v":10800,"d":"10,800"},"Porterville","Kyllä",null,"",{"$f":"miles","v":55},{"$f":"IF(OR(LEN(data[[#This Row],[MATKAM. 2]]),data[[#This Row],[MATKAM. 1]]=\"\"),\"\",IFERROR(data[[#This Row],[KILOMETRIT]]/data[[#This Row],[LITRAA]],\"\"))","v":""},{"$f":"IF(data[[#This Row],[MPG]]=\"\",\"\",100*data[[#This Row],[KULUT]]/data[[#This Row],[KILOMETRIT]])","v":""}]
[null,"2012-05-04","Matka",{"v":10800,"d":"10,800"},"Porterville",{"v":10875,"d":"10,875"},"Toimisto","Kyllä",null,"",{"$f":"miles","v":75},{"$f":"IF(OR(LEN(data[[#This Row],[MATKAM. 2]]),data[[#This Row],[MATKAM. 1]]=\"\"),\"\",IFERROR(data[[#This Row],[KILOMETRIT]]/data[[#This Row],[LITRAA]],\"\"))","v":""},{"$f":"IF(data[[#This Row],[MPG]]=\"\",\"\",100*data[[#This Row],[KULUT]]/data[[#This Row],[KILOMETRIT]])","v":""}]
[null,"2012-05-07","Matka",{"v":10875,"d":"10,875"},"Toimisto",{"v":10921,"d":"10,921"},"Cherry Street","Kyllä",null,"",{"$f":"miles","v":46},{"$f":"IF(OR(LEN(data[[#This Row],[MATKAM. 2]]),data[[#This Row],[MATKAM. 1]]=\"\"),\"\",IFERROR(data[[#This Row],[KILOMETRIT]]/data[[#This Row],[LITRAA]],\"\"))","v":""},{"$f":"IF(data[[#This Row],[MPG]]=\"\",\"\",100*data[[#This Row],[KULUT]]/data[[#This Row],[KILOMETRIT]])","v":""}]
[null,"2012-05-07","Matka",{"v":10921,"d":"10,921"},"Smithfields",{"v":10969,"d":"10,969"},"Toimisto","Kyllä",null,"",{"$f":"miles","v":48},{"$f":"IF(OR(LEN(data[[#This Row],[MATKAM. 2]]),data[[#This Row],[MATKAM. 1]]=\"\"),\"\",IFERROR(data[[#This Row],[KILOMETRIT]]/data[[#This Row],[LITRAA]],\"\"))","v":""},{"$f":"IF(data[[#This Row],[MPG]]=\"\",\"\",100*data[[#This Row],[KULUT]]/data[[#This Row],[KILOMETRIT]])","v":""}]
[null,"2012-05-09","Matka",{"v":10969,"d":"10,969"},"Toimisto",{"v":11000,"d":"11,000"},"Riverside","Kyllä",null,"",{"$f":"miles","v":31},{"$f":"IF(OR(LEN(data[[#This Row],[MATKAM. 2]]),data[[#This Row],[MATKAM. 1]]=\"\"),\"\",IFERROR(data[[#This Row],[KILOMETRIT]]/data[[#This Row],[LITRAA]],\"\"))","v":""},{"$f":"IF(data[[#This Row],[MPG]]=\"\",\"\",100*data[[#This Row],[KULUT]]/data[[#This Row],[KILOMETRIT]])","v":""}]
[null,"2012-05-09","Matka",{"v":11000,"d":"11,000"},"Riverside",{"v":11100,"d":"11,100"},"Koti","Ei",null,"",{"$f":"miles","v":100},{"$f":"IF(OR(LEN(data[[#This Row],[MATKAM. 2]]),data[[#This Row],[MATKAM. 1]]=\"\"),\"\",IFERROR(data[[#This Row],[KILOMETRIT]]/data[[#This Row],[LITRAA]],\"\"))","v":""},{"$f":"IF(data[[#This Row],[MPG]]=\"\",\"\",100*data[[#This Row],[KULUT]]/data[[#This Row],[KILOMETRIT]])","v":""}]

{"sheet":"laskelmat","index":2,"n_rows":69,"n_cols":13,"rows_kept":69}
["*** Tämä taulukko pysyy piilotettuna ***"]
[]
[]
[]
[]
[{"$nulls":8},{"$f":"OFFSET(I9,,secondAxis=\"Polttoainekustannukset\")","v":"SENTTIÄ/MAILI"}]
[{"$nulls":12},2]
[{"$nulls":7},"Matka","Polttoaine","Polttoaine",null,"Second Axis:  ",{"$f":"REPT(\"MPG\",M7=1)&REPT(\"Polttoainekustannukset\",M7=2)","v":"Polttoainekustannukset"}]
[{"$nulls":7},"Ajetut mailit","MPG","SENTTIÄ/MAILI"]
[null,null,"Korvattavat mailit:  ",{"$f":"SUMIFS(data[KILOMETRIT],data[KORVAUS],\"Kyllä\",data[PÄIVÄMÄÄRÄ],\">=\"&periodStart,data[PÄIVÄMÄÄRÄ],\"<=\"&periodEnd)","v":820},null,1,{"$f":"periodStart","v":"2012-05-01"},{"$f":"SUMIFS(data[KILOMETRIT],data[PÄIVÄMÄÄRÄ],G10,data[TOIMINTA],$H$8)","v":162},{"$f":"IFERROR(AVERAGEIFS(data[MPG],data[PÄIVÄMÄÄRÄ],G10,data[TOIMINTA],$I$8),NA())","v":{"$error":"#N/A"}},{"$f":"IFERROR(AVERAGEIFS(data[SENTTIÄ/KM],data[PÄIVÄMÄÄRÄ],G10,data[TOIMINTA],$J$8),NA())","v":{"$error":"#N/A"}}]
[null,null,"Korvaus yhteensä:  ",{"$f":"D10*ReimbursementPerMile/100","v":{"v":442.8,"d":"442.80 €"}},null,2,{"$f":"G10+1","v":"2012-05-02"},{"$f":"SUMIFS(data[KILOMETRIT],data[PÄIVÄMÄÄRÄ],G11,data[TOIMINTA],$H$8)","v":183},{"$f":"IFERROR(AVERAGEIFS(data[MPG],data[PÄIVÄMÄÄRÄ],G11,data[TOIMINTA],$I$8),NA())","v":{"v":58.03571428571429,"d":"58.0"}},{"$f":"IFERROR(AVERAGEIFS(data[SENTTIÄ/KM],data[PÄIVÄMÄÄRÄ],G11,data[TOIMINTA],$J$8),NA())","v":{"v":8.526153846153846,"d":"8.5"}}]
[{"$nulls":5},3,"2012-05-03",{"$f":"SUMIFS(data[KILOMETRIT],data[PÄIVÄMÄÄRÄ],G12,data[TOIMINTA],$H$8)","v":227},{"$f":"IFERROR(AVERAGEIFS(data[MPG],data[PÄIVÄMÄÄRÄ],G12,data[TOIMINTA],$I$8),NA())","v":{"$error":"#N/A"}},{"$f":"IFERROR(AVERAGEIFS(data[SENTTIÄ/KM],data[PÄIVÄMÄÄRÄ],G12,data[TOIMINTA],$J$8),NA())","v":{"$error":"#N/A"}}]
[{"$nulls":5},4,"2012-05-04",{"$f":"SUMIFS(data[KILOMETRIT],data[PÄIVÄMÄÄRÄ],G13,data[TOIMINTA],$H$8)","v":130},{"$f":"IFERROR(AVERAGEIFS(data[MPG],data[PÄIVÄMÄÄRÄ],G13,data[TOIMINTA],$I$8),NA())","v":{"v":17.771084337349397,"d":"17.8"}},{"$f":"IFERROR(AVERAGEIFS(data[SENTTIÄ/KM],data[PÄIVÄMÄÄRÄ],G13,data[TOIMINTA],$J$8),NA())","v":{"v":23.471186440677965,"d":"23.5"}}]
[{"$nulls":5},5,"2012-05-05",{"$f":"SUMIFS(data[KILOMETRIT],data[PÄIVÄMÄÄRÄ],G14,data[TOIMINTA],$H$8)","v":0},{"$f":"IFERROR(AVERAGEIFS(data[MPG],data[PÄIVÄMÄÄRÄ],G14,data[TOIMINTA],$I$8),NA())","v":{"$error":"#N/A"}},{"$f":"IFERROR(AVERAGEIFS(data[SENTTIÄ/KM],data[PÄIVÄMÄÄRÄ],G14,data[TOIMINTA],$J$8),NA())","v":{"$error":"#N/A"}}]
[{"$nulls":5},6,"2012-05-06",{"$f":"SUMIFS(data[KILOMETRIT],data[PÄIVÄMÄÄRÄ],G15,data[TOIMINTA],$H$8)","v":0},{"$f":"IFERROR(AVERAGEIFS(data[MPG],data[PÄIVÄMÄÄRÄ],G15,data[TOIMINTA],$I$8),NA())","v":{"$error":"#N/A"}},{"$f":"IFERROR(AVERAGEIFS(data[SENTTIÄ/KM],data[PÄIVÄMÄÄRÄ],G15,data[TOIMINTA],$J$8),NA())","v":{"$error":"#N/A"}}]
[{"$nulls":5},7,"2012-05-07",{"$f":"SUMIFS(data[KILOMETRIT],data[PÄIVÄMÄÄRÄ],G16,data[TOIMINTA],$H$8)","v":94},{"$f":"IFERROR(AVERAGEIFS(data[MPG],data[PÄIVÄMÄÄRÄ],G16,data[TOIMINTA],$I$8),NA())","v":{"$error":"#N/A"}},{"$f":"IFERROR(AVERAGEIFS(data[SENTTIÄ/KM],data[PÄIVÄMÄÄRÄ],G16,data[TOIMINTA],$J$8),NA())","v":{"$error":"#N/A"}}]
[{"$nulls":5},8,"2012-05-08",{"$f":"SUMIFS(data[KILOMETRIT],data[PÄIVÄMÄÄRÄ],G17,data[TOIMINTA],$H$8)","v":0},{"$f":"IFERROR(AVERAGEIFS(data[MPG],data[PÄIVÄMÄÄRÄ],G17,data[TOIMINTA],$I$8),NA())","v":{"$error":"#N/A"}},{"$f":"IFERROR(AVERAGEIFS(data[SENTTIÄ/KM],data[PÄIVÄMÄÄRÄ],G17,data[TOIMINTA],$J$8),NA())","v":{"$error":"#N/A"}}]
[{"$nulls":5},9,"2012-05-09",{"$f":"SUMIFS(data[KILOMETRIT],data[PÄIVÄMÄÄRÄ],G18,data[TOIMINTA],$H$8)","v":131},{"$f":"IFERROR(AVERAGEIFS(data[MPG],data[PÄIVÄMÄÄRÄ],G18,data[TOIMINTA],$I$8),NA())","v":{"$error":"#N/A"}},{"$f":"IFERROR(AVERAGEIFS(data[SENTTIÄ/KM],data[PÄIVÄMÄÄRÄ],G18,data[TOIMINTA],$J$8),NA())","v":{"$error":"#N/A"}}]
[{"$nulls":5},10,"2012-05-10",{"$f":"SUMIFS(data[KILOMETRIT],data[PÄIVÄMÄÄRÄ],G19,data[TOIMINTA],$H$8)","v":0},{"$f":"IFERROR(AVERAGEIFS(data[MPG],data[PÄIVÄMÄÄRÄ],G19,data[TOIMINTA],$I$8),NA())","v":{"$error":"#N/A"}},{"$f":"IFERROR(AVERAGEIFS(data[SENTTIÄ/KM],data[PÄIVÄMÄÄRÄ],G19,data[TOIMINTA],$J$8),NA())","v":{"$error":"#N/A"}}]
[{"$nulls":5},11,"2012-05-11",{"$f":"SUMIFS(data[KILOMETRIT],data[PÄIVÄMÄÄRÄ],G20,data[TOIMINTA],$H$8)","v":0},{"$f":"IFERROR(AVERAGEIFS(data[MPG],data[PÄIVÄMÄÄRÄ],G20,data[TOIMINTA],$I$8),NA())","v":{"$error":"#N/A"}},{"$f":"IFERROR(AVERAGEIFS(data[SENTTIÄ/KM],data[PÄIVÄMÄÄRÄ],G20,data[TOIMINTA],$J$8),NA())","v":{"$error":"#N/A"}}]
[{"$nulls":5},12,"2012-05-12",{"$f":"SUMIFS(data[KILOMETRIT],data[PÄIVÄMÄÄRÄ],G21,data[TOIMINTA],$H$8)","v":0},{"$f":"IFERROR(AVERAGEIFS(data[MPG],data[PÄIVÄMÄÄRÄ],G21,data[TOIMINTA],$I$8),NA())","v":{"$error":"#N/A"}},{"$f":"IFERROR(AVERAGEIFS(data[SENTTIÄ/KM],data[PÄIVÄMÄÄRÄ],G21,data[TOIMINTA],$J$8),NA())","v":{"$error":"#N/A"}}]
[{"$nulls":5},13,"2012-05-13",{"$f":"SUMIFS(data[KILOMETRIT],data[PÄIVÄMÄÄRÄ],G22,data[TOIMINTA],$H$8)","v":0},{"$f":"IFERROR(AVERAGEIFS(data[MPG],data[PÄIVÄMÄÄRÄ],G22,data[TOIMINTA],$I$8),NA())","v":{"$error":"#N/A"}},{"$f":"IFERROR(AVERAGEIFS(data[SENTTIÄ/KM],data[PÄIVÄMÄÄRÄ],G22,data[TOIMINTA],$J$8),NA())","v":{"$error":"#N/A"}}]
[{"$nulls":5},14,"2012-05-14",{"$f":"SUMIFS(data[KILOMETRIT],data[PÄIVÄMÄÄRÄ],G23,data[TOIMINTA],$H$8)","v":0},{"$f":"IFERROR(AVERAGEIFS(data[MPG],data[PÄIVÄMÄÄRÄ],G23,data[TOIMINTA],$I$8),NA())","v":{"$error":"#N/A"}},{"$f":"IFERROR(AVERAGEIFS(data[SENTTIÄ/KM],data[PÄIVÄMÄÄRÄ],G23,data[TOIMINTA],$J$8),NA())","v":{"$error":"#N/A"}}]
[{"$nulls":5},15,"2012-05-15",{"$f":"SUMIFS(data[KILOMETRIT],data[PÄIVÄMÄÄRÄ],G24,data[TOIMINTA],$H$8)","v":0},{"$f":"IFERROR(AVERAGEIFS(data[MPG],data[PÄIVÄMÄÄRÄ],G24,data[TOIMINTA],$I$8),NA())","v":{"$error":"#N/A"}},{"$f":"IFERROR(AVERAGEIFS(data[SENTTIÄ/KM],data[PÄIVÄMÄÄRÄ],G24,data[TOIMINTA],$J$8),NA())","v":{"$error":"#N/A"}}]
[{"$nulls":5},16,"2012-05-16",{"$f":"SUMIFS(data[KILOMETRIT],data[PÄIVÄMÄÄRÄ],G25,data[TOIMINTA],$H$8)","v":0},{"$f":"IFERROR(AVERAGEIFS(data[MPG],data[PÄIVÄMÄÄRÄ],G25,data[TOIMINTA],$I$8),NA())","v":{"$error":"#N/A"}},{"$f":"IFERROR(AVERAGEIFS(data[SENTTIÄ/KM],data[PÄIVÄMÄÄRÄ],G25,data[TOIMINTA],$J$8),NA())","v":{"$error":"#N/A"}}]
[{"$nulls":5},17,"2012-05-17",{"$f":"SUMIFS(data[KILOMETRIT],data[PÄIVÄMÄÄRÄ],G26,data[TOIMINTA],$H$8)","v":0},{"$f":"IFERROR(AVERAGEIFS(data[MPG],data[PÄIVÄMÄÄRÄ],G26,data[TOIMINTA],$I$8),NA())","v":{"$error":"#N/A"}},{"$f":"IFERROR(AVERAGEIFS(data[SENTTIÄ/KM],data[PÄIVÄMÄÄRÄ],G26,data[TOIMINTA],$J$8),NA())","v":{"$error":"#N/A"}}]
[{"$nulls":5},18,"2012-05-18",{"$f":"SUMIFS(data[KILOMETRIT],data[PÄIVÄMÄÄRÄ],G27,data[TOIMINTA],$H$8)","v":0},{"$f":"IFERROR(AVERAGEIFS(data[MPG],data[PÄIVÄMÄÄRÄ],G27,data[TOIMINTA],$I$8),NA())","v":{"$error":"#N/A"}},{"$f":"IFERROR(AVERAGEIFS(data[SENTTIÄ/KM],data[PÄIVÄMÄÄRÄ],G27,data[TOIMINTA],$J$8),NA())","v":{"$error":"#N/A"}}]
[{"$nulls":5},19,"2012-05-19",{"$f":"SUMIFS(data[KILOMETRIT],data[PÄIVÄMÄÄRÄ],G28,data[TOIMINTA],$H$8)","v":0},{"$f":"IFERROR(AVERAGEIFS(data[MPG],data[PÄIVÄMÄÄRÄ],G28,data[TOIMINTA],$I$8),NA())","v":{"$error":"#N/A"}},{"$f":"IFERROR(AVERAGEIFS(data[SENTTIÄ/KM],data[PÄIVÄMÄÄRÄ],G28,data[TOIMINTA],$J$8),NA())","v":{"$error":"#N/A"}}]
[{"$nulls":5},20,"2012-05-20",{"$f":"SUMIFS(data[KILOMETRIT],data[PÄIVÄMÄÄRÄ],G29,data[TOIMINTA],$H$8)","v":0},{"$f":"IFERROR(AVERAGEIFS(data[MPG],data[PÄIVÄMÄÄRÄ],G29,data[TOIMINTA],$I$8),NA())","v":{"$error":"#N/A"}},{"$f":"IFERROR(AVERAGEIFS(data[SENTTIÄ/KM],data[PÄIVÄMÄÄRÄ],G29,data[TOIMINTA],$J$8),NA())","v":{"$error":"#N/A"}}]
[{"$nulls":5},21,"2012-05-21",{"$f":"SUMIFS(data[KILOMETRIT],data[PÄIVÄMÄÄRÄ],G30,data[TOIMINTA],$H$8)","v":0},{"$f":"IFERROR(AVERAGEIFS(data[MPG],data[PÄIVÄMÄÄRÄ],G30,data[TOIMINTA],$I$8),NA())","v":{"$error":"#N/A"}},{"$f":"IFERROR(AVERAGEIFS(data[SENTTIÄ/KM],data[PÄIVÄMÄÄRÄ],G30,data[TOIMINTA],$J$8),NA())","v":{"$error":"#N/A"}}]
[{"$nulls":5},22,"2012-05-22",{"$f":"SUMIFS(data[KILOMETRIT],data[PÄIVÄMÄÄRÄ],G31,data[TOIMINTA],$H$8)","v":0},{"$f":"IFERROR(AVERAGEIFS(data[MPG],data[PÄIVÄMÄÄRÄ],G31,data[TOIMINTA],$I$8),NA())","v":{"$error":"#N/A"}},{"$f":"IFERROR(AVERAGEIFS(data[SENTTIÄ/KM],data[PÄIVÄMÄÄRÄ],G31,data[TOIMINTA],$J$8),NA())","v":{"$error":"#N/A"}}]
[{"$nulls":5},23,"2012-05-23",{"$f":"SUMIFS(data[KILOMETRIT],data[PÄIVÄMÄÄRÄ],G32,data[TOIMINTA],$H$8)","v":0},{"$f":"IFERROR(AVERAGEIFS(data[MPG],data[PÄIVÄMÄÄRÄ],G32,data[TOIMINTA],$I$8),NA())","v":{"$error":"#N/A"}},{"$f":"IFERROR(AVERAGEIFS(data[SENTTIÄ/KM],data[PÄIVÄMÄÄRÄ],G32,data[TOIMINTA],$J$8),NA())","v":{"$error":"#N/A"}}]
[{"$nulls":5},24,"2012-05-24",{"$f":"SUMIFS(data[KILOMETRIT],data[PÄIVÄMÄÄRÄ],G33,data[TOIMINTA],$H$8)","v":0},{"$f":"IFERROR(AVERAGEIFS(data[MPG],data[PÄIVÄMÄÄRÄ],G33,data[TOIMINTA],$I$8),NA())","v":{"$error":"#N/A"}},{"$f":"IFERROR(AVERAGEIFS(data[SENTTIÄ/KM],data[PÄIVÄMÄÄRÄ],G33,data[TOIMINTA],$J$8),NA())","v":{"$error":"#N/A"}}]
[{"$nulls":5},25,"2012-05-25",{"$f":"SUMIFS(data[KILOMETRIT],data[PÄIVÄMÄÄRÄ],G34,data[TOIMINTA],$H$8)","v":0},{"$f":"IFERROR(AVERAGEIFS(data[MPG],data[PÄIVÄMÄÄRÄ],G34,data[TOIMINTA],$I$8),NA())","v":{"$error":"#N/A"}},{"$f":"IFERROR(AVERAGEIFS(data[SENTTIÄ/KM],data[PÄIVÄMÄÄRÄ],G34,data[TOIMINTA],$J$8),NA())","v":{"$error":"#N/A"}}]
[{"$nulls":5},26,"2012-05-26",{"$f":"SUMIFS(data[KILOMETRIT],data[PÄIVÄMÄÄRÄ],G35,data[TOIMINTA],$H$8)","v":0},{"$f":"IFERROR(AVERAGEIFS(data[MPG],data[PÄIVÄMÄÄRÄ],G35,data[TOIMINTA],$I$8),NA())","v":{"$error":"#N/A"}},{"$f":"IFERROR(AVERAGEIFS(data[SENTTIÄ/KM],data[PÄIVÄMÄÄRÄ],G35,data[TOIMINTA],$J$8),NA())","v":{"$error":"#N/A"}}]
[{"$nulls":5},27,"2012-05-27",{"$f":"SUMIFS(data[KILOMETRIT],data[PÄIVÄMÄÄRÄ],G36,data[TOIMINTA],$H$8)","v":0},{"$f":"IFERROR(AVERAGEIFS(data[MPG],data[PÄIVÄMÄÄRÄ],G36,data[TOIMINTA],$I$8),NA())","v":{"$error":"#N/A"}},{"$f":"IFERROR(AVERAGEIFS(data[SENTTIÄ/KM],data[PÄIVÄMÄÄRÄ],G36,data[TOIMINTA],$J$8),NA())","v":{"$error":"#N/A"}}]
[{"$nulls":5},28,"2012-05-28",{"$f":"SUMIFS(data[KILOMETRIT],data[PÄIVÄMÄÄRÄ],G37,data[TOIMINTA],$H$8)","v":0},{"$f":"IFERROR(AVERAGEIFS(data[MPG],data[PÄIVÄMÄÄRÄ],G37,data[TOIMINTA],$I$8),NA())","v":{"$error":"#N/A"}},{"$f":"IFERROR(AVERAGEIFS(data[SENTTIÄ/KM],data[PÄIVÄMÄÄRÄ],G37,data[TOIMINTA],$J$8),NA())","v":{"$error":"#N/A"}}]
[{"$nulls":5},29,"2012-05-29",{"$f":"SUMIFS(data[KILOMETRIT],data[PÄIVÄMÄÄRÄ],G38,data[TOIMINTA],$H$8)","v":0},{"$f":"IFERROR(AVERAGEIFS(data[MPG],data[PÄIVÄMÄÄRÄ],G38,data[TOIMINTA],$I$8),NA())","v":{"$error":"#N/A"}},{"$f":"IFERROR(AVERAGEIFS(data[SENTTIÄ/KM],data[PÄIVÄMÄÄRÄ],G38,data[TOIMINTA],$J$8),NA())","v":{"$error":"#N/A"}}]
[{"$nulls":5},30,"2012-05-30",{"$f":"SUMIFS(data[KILOMETRIT],data[PÄIVÄMÄÄRÄ],G39,data[TOIMINTA],$H$8)","v":0},{"$f":"IFERROR(AVERAGEIFS(data[MPG],data[PÄIVÄMÄÄRÄ],G39,data[TOIMINTA],$I$8),NA())","v":{"$error":"#N/A"}},{"$f":"IFERROR(AVERAGEIFS(data[SENTTIÄ/KM],data[PÄIVÄMÄÄRÄ],G39,data[TOIMINTA],$J$8),NA())","v":{"$error":"#N/A"}}]
[{"$nulls":5},31,"2012-05-31",{"$f":"SUMIFS(data[KILOMETRIT],data[PÄIVÄMÄÄRÄ],G40,data[TOIMINTA],$H$8)","v":0},{"$f":"IFERROR(AVERAGEIFS(data[MPG],data[PÄIVÄMÄÄRÄ],G40,data[TOIMINTA],$I$8),NA())","v":{"$error":"#N/A"}},{"$f":"IFERROR(AVERAGEIFS(data[SENTTIÄ/KM],data[PÄIVÄMÄÄRÄ],G40,data[TOIMINTA],$J$8),NA())","v":{"$error":"#N/A"}}]
[{"$nulls":5},32,"2012-06-01",{"$f":"SUMIFS(data[KILOMETRIT],data[PÄIVÄMÄÄRÄ],G41,data[TOIMINTA],$H$8)","v":0},{"$f":"IFERROR(AVERAGEIFS(data[MPG],data[PÄIVÄMÄÄRÄ],G41,data[TOIMINTA],$I$8),NA())","v":{"$error":"#N/A"}},{"$f":"IFERROR(AVERAGEIFS(data[SENTTIÄ/KM],data[PÄIVÄMÄÄRÄ],G41,data[TOIMINTA],$J$8),NA())","v":{"$error":"#N/A"}}]
[{"$nulls":5},33,"2012-06-02",{"$f":"SUMIFS(data[KILOMETRIT],data[PÄIVÄMÄÄRÄ],G42,data[TOIMINTA],$H$8)","v":0},{"$f":"IFERROR(AVERAGEIFS(data[MPG],data[PÄIVÄMÄÄRÄ],G42,data[TOIMINTA],$I$8),NA())","v":{"$error":"#N/A"}},{"$f":"IFERROR(AVERAGEIFS(data[SENTTIÄ/KM],data[PÄIVÄMÄÄRÄ],G42,data[TOIMINTA],$J$8),NA())","v":{"$error":"#N/A"}}]
[{"$nulls":5},34,{"$f":"G42+1","v":"2012-06-03"},{"$f":"SUMIFS(data[KILOMETRIT],data[PÄIVÄMÄÄRÄ],G43,data[TOIMINTA],$H$8)","v":0},{"$f":"IFERROR(AVERAGEIFS(data[MPG],data[PÄIVÄMÄÄRÄ],G43,data[TOIMINTA],$I$8),NA())","v":{"$error":"#N/A"}},{"$f":"IFERROR(AVERAGEIFS(data[SENTTIÄ/KM],data[PÄIVÄMÄÄRÄ],G43,data[TOIMINTA],$J$8),NA())","v":{"$error":"#N/A"}}]
[{"$nulls":5},35,"2012-06-04",{"$f":"SUMIFS(data[KILOMETRIT],data[PÄIVÄMÄÄRÄ],G44,data[TOIMINTA],$H$8)","v":0},{"$f":"IFERROR(AVERAGEIFS(data[MPG],data[PÄIVÄMÄÄRÄ],G44,data[TOIMINTA],$I$8),NA())","v":{"$error":"#N/A"}},{"$f":"IFERROR(AVERAGEIFS(data[SENTTIÄ/KM],data[PÄIVÄMÄÄRÄ],G44,data[TOIMINTA],$J$8),NA())","v":{"$error":"#N/A"}}]
[{"$nulls":5},36,"2012-06-05",{"$f":"SUMIFS(data[KILOMETRIT],data[PÄIVÄMÄÄRÄ],G45,data[TOIMINTA],$H$8)","v":0},{"$f":"IFERROR(AVERAGEIFS(data[MPG],data[PÄIVÄMÄÄRÄ],G45,data[TOIMINTA],$I$8),NA())","v":{"$error":"#N/A"}},{"$f":"IFERROR(AVERAGEIFS(data[SENTTIÄ/KM],data[PÄIVÄMÄÄRÄ],G45,data[TOIMINTA],$J$8),NA())","v":{"$error":"#N/A"}}]
[{"$nulls":5},37,"2012-06-06",{"$f":"SUMIFS(data[KILOMETRIT],data[PÄIVÄMÄÄRÄ],G46,data[TOIMINTA],$H$8)","v":0},{"$f":"IFERROR(AVERAGEIFS(data[MPG],data[PÄIVÄMÄÄRÄ],G46,data[TOIMINTA],$I$8),NA())","v":{"$error":"#N/A"}},{"$f":"IFERROR(AVERAGEIFS(data[SENTTIÄ/KM],data[PÄIVÄMÄÄRÄ],G46,data[TOIMINTA],$J$8),NA())","v":{"$error":"#N/A"}}]
[{"$nulls":5},38,"2012-06-07",{"$f":"SUMIFS(data[KILOMETRIT],data[PÄIVÄMÄÄRÄ],G47,data[TOIMINTA],$H$8)","v":0},{"$f":"IFERROR(AVERAGEIFS(data[MPG],data[PÄIVÄMÄÄRÄ],G47,data[TOIMINTA],$I$8),NA())","v":{"$error":"#N/A"}},{"$f":"IFERROR(AVERAGEIFS(data[SENTTIÄ/KM],data[PÄIVÄMÄÄRÄ],G47,data[TOIMINTA],$J$8),NA())","v":{"$error":"#N/A"}}]
[{"$nulls":5},39,"2012-06-08",{"$f":"SUMIFS(data[KILOMETRIT],data[PÄIVÄMÄÄRÄ],G48,data[TOIMINTA],$H$8)","v":0},{"$f":"IFERROR(AVERAGEIFS(data[MPG],data[PÄIVÄMÄÄRÄ],G48,data[TOIMINTA],$I$8),NA())","v":{"$error":"#N/A"}},{"$f":"IFERROR(AVERAGEIFS(data[SENTTIÄ/KM],data[PÄIVÄMÄÄRÄ],G48,data[TOIMINTA],$J$8),NA())","v":{"$error":"#N/A"}}]
[{"$nulls":5},40,"2012-06-09",{"$f":"SUMIFS(data[KILOMETRIT],data[PÄIVÄMÄÄRÄ],G49,data[TOIMINTA],$H$8)","v":0},{"$f":"IFERROR(AVERAGEIFS(data[MPG],data[PÄIVÄMÄÄRÄ],G49,data[TOIMINTA],$I$8),NA())","v":{"$error":"#N/A"}},{"$f":"IFERROR(AVERAGEIFS(data[SENTTIÄ/KM],data[PÄIVÄMÄÄRÄ],G49,data[TOIMINTA],$J$8),NA())","v":{"$error":"#N/A"}}]
[{"$nulls":5},41,"2012-06-10",{"$f":"SUMIFS(data[KILOMETRIT],data[PÄIVÄMÄÄRÄ],G50,data[TOIMINTA],$H$8)","v":0},{"$f":"IFERROR(AVERAGEIFS(data[MPG],data[PÄIVÄMÄÄRÄ],G50,data[TOIMINTA],$I$8),NA())","v":{"$error":"#N/A"}},{"$f":"IFERROR(AVERAGEIFS(data[SENTTIÄ/KM],data[PÄIVÄMÄÄRÄ],G50,data[TOIMINTA],$J$8),NA())","v":{"$error":"#N/A"}}]
[{"$nulls":5},42,"2012-06-11",{"$f":"SUMIFS(data[KILOMETRIT],data[PÄIVÄMÄÄRÄ],G51,data[TOIMINTA],$H$8)","v":0},{"$f":"IFERROR(AVERAGEIFS(data[MPG],data[PÄIVÄMÄÄRÄ],G51,data[TOIMINTA],$I$8),NA())","v":{"$error":"#N/A"}},{"$f":"IFERROR(AVERAGEIFS(data[SENTTIÄ/KM],data[PÄIVÄMÄÄRÄ],G51,data[TOIMINTA],$J$8),NA())","v":{"$error":"#N/A"}}]
[{"$nulls":5},43,"2012-06-12",{"$f":"SUMIFS(data[KILOMETRIT],data[PÄIVÄMÄÄRÄ],G52,data[TOIMINTA],$H$8)","v":0},{"$f":"IFERROR(AVERAGEIFS(data[MPG],data[PÄIVÄMÄÄRÄ],G52,data[TOIMINTA],$I$8),NA())","v":{"$error":"#N/A"}},{"$f":"IFERROR(AVERAGEIFS(data[SENTTIÄ/KM],data[PÄIVÄMÄÄRÄ],G52,data[TOIMINTA],$J$8),NA())","v":{"$error":"#N/A"}}]
[{"$nulls":5},44,"2012-06-13",{"$f":"SUMIFS(data[KILOMETRIT],data[PÄIVÄMÄÄRÄ],G53,data[TOIMINTA],$H$8)","v":0},{"$f":"IFERROR(AVERAGEIFS(data[MPG],data[PÄIVÄMÄÄRÄ],G53,data[TOIMINTA],$I$8),NA())","v":{"$error":"#N/A"}},{"$f":"IFERROR(AVERAGEIFS(data[SENTTIÄ/KM],data[PÄIVÄMÄÄRÄ],G53,data[TOIMINTA],$J$8),NA())","v":{"$error":"#N/A"}}]
[{"$nulls":5},45,"2012-06-14",{"$f":"SUMIFS(data[KILOMETRIT],data[PÄIVÄMÄÄRÄ],G54,data[TOIMINTA],$H$8)","v":0},{"$f":"IFERROR(AVERAGEIFS(data[MPG],data[PÄIVÄMÄÄRÄ],G54,data[TOIMINTA],$I$8),NA())","v":{"$error":"#N/A"}},{"$f":"IFERROR(AVERAGEIFS(data[SENTTIÄ/KM],data[PÄIVÄMÄÄRÄ],G54,data[TOIMINTA],$J$8),NA())","v":{"$error":"#N/A"}}]
[{"$nulls":5},46,"2012-06-15",{"$f":"SUMIFS(data[KILOMETRIT],data[PÄIVÄMÄÄRÄ],G55,data[TOIMINTA],$H$8)","v":0},{"$f":"IFERROR(AVERAGEIFS(data[MPG],data[PÄIVÄMÄÄRÄ],G55,data[TOIMINTA],$I$8),NA())","v":{"$error":"#N/A"}},{"$f":"IFERROR(AVERAGEIFS(data[SENTTIÄ/KM],data[PÄIVÄMÄÄRÄ],G55,data[TOIMINTA],$J$8),NA())","v":{"$error":"#N/A"}}]
[{"$nulls":5},47,"2012-06-16",{"$f":"SUMIFS(data[KILOMETRIT],data[PÄIVÄMÄÄRÄ],G56,data[TOIMINTA],$H$8)","v":0},{"$f":"IFERROR(AVERAGEIFS(data[MPG],data[PÄIVÄMÄÄRÄ],G56,data[TOIMINTA],$I$8),NA())","v":{"$error":"#N/A"}},{"$f":"IFERROR(AVERAGEIFS(data[SENTTIÄ/KM],data[PÄIVÄMÄÄRÄ],G56,data[TOIMINTA],$J$8),NA())","v":{"$error":"#N/A"}}]
[{"$nulls":5},48,"2012-06-17",{"$f":"SUMIFS(data[KILOMETRIT],data[PÄIVÄMÄÄRÄ],G57,data[TOIMINTA],$H$8)","v":0},{"$f":"IFERROR(AVERAGEIFS(data[MPG],data[PÄIVÄMÄÄRÄ],G57,data[TOIMINTA],$I$8),NA())","v":{"$error":"#N/A"}},{"$f":"IFERROR(AVERAGEIFS(data[SENTTIÄ/KM],data[PÄIVÄMÄÄRÄ],G57,data[TOIMINTA],$J$8),NA())","v":{"$error":"#N/A"}}]
[{"$nulls":5},49,"2012-06-18",{"$f":"SUMIFS(data[KILOMETRIT],data[PÄIVÄMÄÄRÄ],G58,data[TOIMINTA],$H$8)","v":0},{"$f":"IFERROR(AVERAGEIFS(data[MPG],data[PÄIVÄMÄÄRÄ],G58,data[TOIMINTA],$I$8),NA())","v":{"$error":"#N/A"}},{"$f":"IFERROR(AVERAGEIFS(data[SENTTIÄ/KM],data[PÄIVÄMÄÄRÄ],G58,data[TOIMINTA],$J$8),NA())","v":{"$error":"#N/A"}}]
[{"$nulls":5},50,"2012-06-19",{"$f":"SUMIFS(data[KILOMETRIT],data[PÄIVÄMÄÄRÄ],G59,data[TOIMINTA],$H$8)","v":0},{"$f":"IFERROR(AVERAGEIFS(data[MPG],data[PÄIVÄMÄÄRÄ],G59,data[TOIMINTA],$I$8),NA())","v":{"$error":"#N/A"}},{"$f":"IFERROR(AVERAGEIFS(data[SENTTIÄ/KM],data[PÄIVÄMÄÄRÄ],G59,data[TOIMINTA],$J$8),NA())","v":{"$error":"#N/A"}}]
[{"$nulls":5},51,"2012-06-20",{"$f":"SUMIFS(data[KILOMETRIT],data[PÄIVÄMÄÄRÄ],G60,data[TOIMINTA],$H$8)","v":0},{"$f":"IFERROR(AVERAGEIFS(data[MPG],data[PÄIVÄMÄÄRÄ],G60,data[TOIMINTA],$I$8),NA())","v":{"$error":"#N/A"}},{"$f":"IFERROR(AVERAGEIFS(data[SENTTIÄ/KM],data[PÄIVÄMÄÄRÄ],G60,data[TOIMINTA],$J$8),NA())","v":{"$error":"#N/A"}}]
[{"$nulls":5},52,"2012-06-21",{"$f":"SUMIFS(data[KILOMETRIT],data[PÄIVÄMÄÄRÄ],G61,data[TOIMINTA],$H$8)","v":0},{"$f":"IFERROR(AVERAGEIFS(data[MPG],data[PÄIVÄMÄÄRÄ],G61,data[TOIMINTA],$I$8),NA())","v":{"$error":"#N/A"}},{"$f":"IFERROR(AVERAGEIFS(data[SENTTIÄ/KM],data[PÄIVÄMÄÄRÄ],G61,data[TOIMINTA],$J$8),NA())","v":{"$error":"#N/A"}}]
[{"$nulls":5},53,"2012-06-22",{"$f":"SUMIFS(data[KILOMETRIT],data[PÄIVÄMÄÄRÄ],G62,data[TOIMINTA],$H$8)","v":0},{"$f":"IFERROR(AVERAGEIFS(data[MPG],data[PÄIVÄMÄÄRÄ],G62,data[TOIMINTA],$I$8),NA())","v":{"$error":"#N/A"}},{"$f":"IFERROR(AVERAGEIFS(data[SENTTIÄ/KM],data[PÄIVÄMÄÄRÄ],G62,data[TOIMINTA],$J$8),NA())","v":{"$error":"#N/A"}}]
[{"$nulls":5},54,"2012-06-23",{"$f":"SUMIFS(data[KILOMETRIT],data[PÄIVÄMÄÄRÄ],G63,data[TOIMINTA],$H$8)","v":0},{"$f":"IFERROR(AVERAGEIFS(data[MPG],data[PÄIVÄMÄÄRÄ],G63,data[TOIMINTA],$I$8),NA())","v":{"$error":"#N/A"}},{"$f":"IFERROR(AVERAGEIFS(data[SENTTIÄ/KM],data[PÄIVÄMÄÄRÄ],G63,data[TOIMINTA],$J$8),NA())","v":{"$error":"#N/A"}}]
[{"$nulls":5},55,"2012-06-24",{"$f":"SUMIFS(data[KILOMETRIT],data[PÄIVÄMÄÄRÄ],G64,data[TOIMINTA],$H$8)","v":0},{"$f":"IFERROR(AVERAGEIFS(data[MPG],data[PÄIVÄMÄÄRÄ],G64,data[TOIMINTA],$I$8),NA())","v":{"$error":"#N/A"}},{"$f":"IFERROR(AVERAGEIFS(data[SENTTIÄ/KM],data[PÄIVÄMÄÄRÄ],G64,data[TOIMINTA],$J$8),NA())","v":{"$error":"#N/A"}}]
[{"$nulls":5},56,"2012-06-25",{"$f":"SUMIFS(data[KILOMETRIT],data[PÄIVÄMÄÄRÄ],G65,data[TOIMINTA],$H$8)","v":0},{"$f":"IFERROR(AVERAGEIFS(data[MPG],data[PÄIVÄMÄÄRÄ],G65,data[TOIMINTA],$I$8),NA())","v":{"$error":"#N/A"}},{"$f":"IFERROR(AVERAGEIFS(data[SENTTIÄ/KM],data[PÄIVÄMÄÄRÄ],G65,data[TOIMINTA],$J$8),NA())","v":{"$error":"#N/A"}}]
[{"$nulls":5},57,"2012-06-26",{"$f":"SUMIFS(data[KILOMETRIT],data[PÄIVÄMÄÄRÄ],G66,data[TOIMINTA],$H$8)","v":0},{"$f":"IFERROR(AVERAGEIFS(data[MPG],data[PÄIVÄMÄÄRÄ],G66,data[TOIMINTA],$I$8),NA())","v":{"$error":"#N/A"}},{"$f":"IFERROR(AVERAGEIFS(data[SENTTIÄ/KM],data[PÄIVÄMÄÄRÄ],G66,data[TOIMINTA],$J$8),NA())","v":{"$error":"#N/A"}}]
[{"$nulls":5},58,"2012-06-27",{"$f":"SUMIFS(data[KILOMETRIT],data[PÄIVÄMÄÄRÄ],G67,data[TOIMINTA],$H$8)","v":0},{"$f":"IFERROR(AVERAGEIFS(data[MPG],data[PÄIVÄMÄÄRÄ],G67,data[TOIMINTA],$I$8),NA())","v":{"$error":"#N/A"}},{"$f":"IFERROR(AVERAGEIFS(data[SENTTIÄ/KM],data[PÄIVÄMÄÄRÄ],G67,data[TOIMINTA],$J$8),NA())","v":{"$error":"#N/A"}}]
[{"$nulls":5},59,"2012-06-28",{"$f":"SUMIFS(data[KILOMETRIT],data[PÄIVÄMÄÄRÄ],G68,data[TOIMINTA],$H$8)","v":0},{"$f":"IFERROR(AVERAGEIFS(data[MPG],data[PÄIVÄMÄÄRÄ],G68,data[TOIMINTA],$I$8),NA())","v":{"$error":"#N/A"}},{"$f":"IFERROR(AVERAGEIFS(data[SENTTIÄ/KM],data[PÄIVÄMÄÄRÄ],G68,data[TOIMINTA],$J$8),NA())","v":{"$error":"#N/A"}}]
[{"$nulls":5},60,"2012-06-29",{"$f":"SUMIFS(data[KILOMETRIT],data[PÄIVÄMÄÄRÄ],G69,data[TOIMINTA],$H$8)","v":0},{"$f":"IFERROR(AVERAGEIFS(data[MPG],data[PÄIVÄMÄÄRÄ],G69,data[TOIMINTA],$I$8),NA())","v":{"$error":"#N/A"}},{"$f":"IFERROR(AVERAGEIFS(data[SENTTIÄ/KM],data[PÄIVÄMÄÄRÄ],G69,data[TOIMINTA],$J$8),NA())","v":{"$error":"#N/A"}}]